[Event "Schack-SM 2024: Sverigemastarklassen"]
[Site "Fortnox Arena, Hejaregatan 5, Vaxjo, Sweden"]
[Date "2024.06.30"]
[Round "2.2"]
[White "Seo, Jung Min"]
[Black "Ostlund, Joar"]
[Result "1-0"]
[TimeControl "90 minutes for 40 moves + 30 minutes for the rest of the game + 30 seconds per move from move one."]
[WhiteTitle "IM"]
[BlackTitle "FM"]
[WhiteElo "2442"]
[BlackElo "2334"]

1. e4 {[%clk 01:30:58]} {[%emt 00:00:03]} e5 {[%clk 01:30:22]} {[%emt
00:00:38]} 2. Nf3 {[%clk 01:31:21]} {[%emt 00:00:07]} Nc6 {[%clk 01:30:47]}
{[%emt 00:00:05]} 3. Bb5 {[%clk 01:31:50]} {[%emt 00:00:02]} g6 {[%clk
01:31:09]} {[%emt 00:00:07]} 4. c3 {[%clk 01:31:55]} {[%emt 00:00:25]} Bg7
{[%clk 01:31:33]} {[%emt 00:00:06]} 5. d4 {[%clk 01:32:08]} {[%emt 00:00:18]}
exd4 {[%clk 01:31:55]} {[%emt 00:00:08]} 6. cxd4 {[%clk 01:32:36]} {[%emt
00:00:03]} a6 {[%clk 01:32:17]} {[%emt 00:00:08]} 7. Ba4 {[%clk 01:32:50]}
{[%emt 00:00:16]} b5 {[%clk 01:32:31]} {[%emt 00:00:16]} 8. Bb3 {[%clk
01:30:49]} {[%emt 00:02:30]} Nge7 {[%clk 01:32:50]} {[%emt 00:00:12]} 9. O-O
{[%clk 01:31:07]} {[%emt 00:00:12]} O-O {[%clk 01:33:10]} {[%emt 00:00:09]} 10.
d5 {[%clk 01:22:11]} {[%emt 00:09:26]} Na5 {[%clk 01:33:26]} {[%emt 00:00:13]}
11. Bd2 {[%clk 01:22:37]} {[%emt 00:00:05]} Nxb3 {[%clk 01:33:51]} {[%emt
00:00:06]} 12. Qxb3 {[%clk 01:23:05]} {[%emt 00:00:01]} c5 {[%clk 01:33:54]}
{[%emt 00:00:27]} 13. dxc6 {[%clk 01:18:44]} {[%emt 00:04:52]} dxc6 {[%clk
01:31:08]} {[%emt 00:03:15]} 14. Bc3 {[%clk 01:18:47]} {[%emt 00:00:27]} Be6
{[%clk 01:16:50]} {[%emt 00:14:48]} 15. Qa3 {[%clk 01:08:20]} {[%emt 00:10:57]}
Bxc3 {[%clk 01:08:37]} {[%emt 00:08:44]} 16. Nxc3 {[%clk 01:06:35]} {[%emt
00:02:13]} Nc8 {[%clk 01:05:54]} {[%emt 00:03:15]} 17. Qc5 {[%clk 01:04:22]}
{[%emt 00:02:40]} Qb6 {[%clk 01:01:58]} {[%emt 00:04:28]} 18. Qg5 {[%clk
00:57:45]} {[%emt 00:07:06]} f6 {[%clk 00:59:56]} {[%emt 00:02:34]} 19. Qf4
{[%clk 00:57:12]} {[%emt 00:01:02]} Qb8 {[%clk 00:48:38]} {[%emt 00:11:49]} 20.
Qh4 {[%clk 00:52:49]} {[%emt 00:04:50]} Qc7 {[%clk 00:33:11]} {[%emt 00:15:59]}
21. e5 {[%clk 00:43:14]} {[%emt 00:10:05]} fxe5 {[%clk 00:14:14]} {[%emt
00:19:26]} 22. Rfe1 {[%clk 00:43:11]} {[%emt 00:00:33]} Rf5 {[%clk 00:08:28]}
{[%emt 00:06:17]} 23. Qg3 {[%clk 00:40:55]} {[%emt 00:02:47]} b4 {[%clk
00:05:49]} {[%emt 00:03:08]} 24. Na4 {[%clk 00:37:48]} {[%emt 00:03:36]} Bd5
{[%clk 00:03:59]} {[%emt 00:02:21]} 25. Nxe5 {[%clk 00:37:16]} {[%emt
00:01:03]} Nb6 {[%clk 00:03:48]} {[%emt 00:00:40]} 26. Nxb6 {[%clk 00:37:25]}
{[%emt 00:00:22]} Qxb6 {[%clk 00:04:05]} {[%emt 00:00:12]} 27. Nxg6 {[%clk
00:36:21]} {[%emt 00:01:35]} Rf7 {[%clk 00:00:38]} {[%emt 00:03:56]} 28. Ne7+
{[%clk 00:36:35]} {[%emt 00:00:16]} Kh8 {[%clk 00:01:06]} {[%emt 00:00:03]} 29.
Qe5+ {[%clk 00:36:00]} {[%emt 00:01:03]} Rg7 {[%clk 00:01:34]} {[%emt
00:00:02]} 30. Nf5 {[%clk 00:33:48]} {[%emt 00:02:42]} Qc7 {[%clk 00:01:05]}
{[%emt 00:01:01]} 31. Qxg7+ Qxg7 {[%clk 00:01:32]} 32. Nxg7 {[%clk 00:33:38]}
{[%emt 00:00:04]} Kxg7 {[%clk 00:01:54]} {[%emt 00:00:08]} 33. a3 {[%clk
00:33:45]} {[%emt 00:00:23]} b3 {[%clk 00:01:18]} {[%emt 00:01:05]} 34. f3
{[%clk 00:33:49]} {[%emt 00:00:27]} Kf6 {[%clk 00:00:39]} {[%emt 00:01:08]} 35.
Kf2 {[%clk 00:33:55]} {[%emt 00:00:25]} a5 {[%clk 00:00:34]} {[%emt 00:00:34]}
36. Rad1 {[%clk 00:34:16]} {[%emt 00:00:08]} a4 {[%clk 00:00:44]} {[%emt
00:00:22]} 37. Rd4 {[%clk 00:34:31]} {[%emt 00:00:14]} Ra5 {[%clk 00:01:06]}
{[%emt 00:00:09]} 38. g4 {[%clk 00:34:33]} {[%emt 00:00:27]} Rc5 {[%clk
00:00:46]} {[%emt 00:00:50]} 39. Rxa4 {[%clk 00:33:05]} {[%emt 00:01:59]} Rc2+
{[%clk 00:01:13]} {[%emt 00:00:02]} 40. Re2 {[%clk 00:33:24]} {[%emt 00:00:12]}
c5 {[%clk 00:01:13]} {[%emt 00:00:30]} 41. Ke3 {[%clk 00:33:14]} {[%emt
00:00:39]} Rc1 {[%clk 00:01:25]} {[%emt 00:00:19]} 42. Rf4+ {[%clk 00:33:18]}
{[%emt 00:00:25]} Kg6 {[%clk 00:01:34]} {[%emt 00:00:21]} 43. Rf5 {[%clk
00:33:23]} {[%emt 00:00:25]} Be6 {[%clk 00:01:26]} {[%emt 00:00:38]} 44. Re5
{[%clk 00:33:40]} {[%emt 00:00:13]} Bf7 {[%clk 00:01:03]} {[%emt 00:00:55]} 45.
h4 {[%clk 00:33:51]} {[%emt 00:00:18]} c4 {[%clk 00:01:29]} {[%emt 00:00:04]}
46. Rc5 {[%clk 00:34:01]} {[%emt 00:00:19]} 1-0

[ePGN "0.1;DGT LiveChess/2.2.6"]

[Event "Schack-SM 2024: Sverigemastarklassen"]
[Site "Fortnox Arena, Hejaregatan 5, Vaxjo, Sweden"]
[Date "2024.06.29"]
[Round "1.1"]
[White "Semcesen, Daniel"]
[Black "Sivuk, Vitaly"]
[Result "0-1"]
[TimeControl "90 minutes for 40 moves + 30 minutes for the rest of the game + 30 seconds per move from move one."]
[WhiteTitle "GM"]
[BlackTitle "GM"]
[WhiteElo "2451"]
[BlackElo "2569"]

1. d4 {[%clk 01:30:52]} {[%emt 00:00:09]} d5 {[%clk 01:30:42]} {[%emt
00:00:17]} 2. Nf3 {[%clk 01:31:09]} {[%emt 00:00:14]} c5 {[%clk 01:30:31]}
{[%emt 00:00:41]} 3. c3 {[%clk 01:28:37]} {[%emt 00:03:03]} Nc6 {[%clk
01:27:51]} {[%emt 00:03:08]} 4. Bf4 {[%clk 01:20:23]} {[%emt 00:08:44]} Qb6
{[%clk 01:24:43]} {[%emt 00:03:39]} 5. Qb3 {[%clk 01:18:14]} {[%emt 00:02:09]}
c4 {[%clk 01:21:08]} {[%emt 00:04:05]} 6. Qc2 {[%clk 01:18:18]} {[%emt
00:00:56]} Nf6 {[%clk 01:14:34]} {[%emt 00:07:03]} 7. h3 {[%clk 01:16:19]}
{[%emt 00:02:30]} Bf5 {[%clk 01:13:34]} {[%emt 00:01:31]} 8. Qc1 {[%clk
01:16:32]} {[%emt 00:00:16]} g6 {[%clk 01:11:38]} {[%emt 00:02:25]} 9. Nbd2
{[%clk 01:15:50]} {[%emt 00:01:12]} Bg7 {[%clk 01:11:26]} {[%emt 00:00:43]} 10.
e3 {[%clk 01:14:16]} {[%emt 00:02:04]} O-O {[%clk 01:10:49]} {[%emt 00:01:07]}
11. Be2 {[%clk 01:14:26]} {[%emt 00:00:20]} Nd7 {[%clk 01:09:28]} {[%emt
00:01:50]} 12. O-O {[%clk 01:12:11]} {[%emt 00:02:45]} e5 {[%clk 01:06:23]}
{[%emt 00:03:37]} 13. Nxe5 {[%clk 00:59:29]} {[%emt 00:13:12]} Ncxe5 {[%clk
01:05:20]} {[%emt 00:01:32]} 14. dxe5 {[%clk 00:58:49]} {[%emt 00:01:11]} Nc5
{[%clk 01:02:16]} {[%emt 00:03:34]} 15. Nf3 {[%clk 00:55:32]} {[%emt 00:03:46]}
Bd3 {[%clk 00:59:03]} {[%emt 00:03:43]} 16. Re1 {[%clk 00:54:59]} {[%emt
00:01:04]} Rfe8 {[%clk 00:57:30]} {[%emt 00:02:02]} 17. Qd2 {[%clk 00:52:38]}
{[%emt 00:02:51]} a5 {[%clk 00:54:24]} {[%emt 00:03:35]} 18. Bxd3 {[%clk
00:48:28]} {[%emt 00:04:42]} Nxd3 {[%clk 00:54:41]} {[%emt 00:00:13]} 19. Re2
{[%clk 00:48:46]} {[%emt 00:00:11]} a4 {[%clk 00:49:38]} {[%emt 00:05:33]} 20.
a3 {[%clk 00:47:31]} {[%emt 00:01:46]} Ra5 {[%clk 00:44:49]} {[%emt 00:05:19]}
21. Nd4 {[%clk 00:42:36]} {[%emt 00:05:25]} Bxe5 {[%clk 00:43:07]} {[%emt
00:02:11]} 22. Bxe5 {[%clk 00:42:33]} {[%emt 00:00:33]} Rxe5 {[%clk 00:43:31]}
{[%emt 00:00:06]} 23. Rd1 {[%clk 00:41:44]} {[%emt 00:01:20]} Qf6 {[%clk
00:41:26]} {[%emt 00:02:35]} 24. Nf3 {[%clk 00:36:49]} {[%emt 00:05:25]} Rf5
{[%clk 00:38:17]} {[%emt 00:03:38]} 25. Ne1 {[%clk 00:36:07]} {[%emt 00:01:13]}
Nc5 {[%clk 00:36:38]} {[%emt 00:02:10]} 26. Qd4 {[%clk 00:33:19]} {[%emt
00:03:17]} Qe7 {[%clk 00:35:11]} {[%emt 00:01:57]} 27. Nf3 {[%clk 00:26:09]}
{[%emt 00:07:41]} Nd3 {[%clk 00:19:51]} {[%emt 00:15:50]} 28. Red2 {[%clk
00:17:24]} {[%emt 00:09:15]} Ra6 {[%clk 00:12:30]} {[%emt 00:07:51]} 29. Qh4
{[%clk 00:15:15]} {[%emt 00:02:39]} Raf6 {[%clk 00:10:28]} {[%emt 00:02:31]} 30.
Qg3 {[%clk 00:10:38]} {[%emt 00:05:06]} Kg7 {[%clk 00:08:43]} {[%emt 00:02:16]}
31. Rf1 {[%clk 00:08:49]} {[%emt 00:02:20]} h6 {[%clk 00:08:52]} {[%emt
00:00:21]} 32. h4 {[%clk 00:06:26]} {[%emt 00:02:52]} Rb6 {[%clk 00:06:13]}
{[%emt 00:03:10]} 33. Rb1 {[%clk 00:03:51]} {[%emt 00:03:04]} Qe4 {[%clk
00:05:08]} {[%emt 00:01:35]} 34. Rc2 {[%clk 00:02:19]} {[%emt 00:02:04]} Rh5
{[%clk 00:02:42]} {[%emt 00:02:55]} 35. Qc7 {[%clk 00:01:32]} {[%emt 00:01:18]}
Rf6 {[%clk 00:02:52]} {[%emt 00:00:19]} 36. Qg3 {[%clk 00:01:54]} {[%emt
00:00:09]} Ne5 {[%clk 00:02:35]} {[%emt 00:00:46]} 37. Ne1 {[%clk 00:01:17]}
{[%emt 00:01:08]} Rxh4 {[%clk 00:02:20]} {[%emt 00:00:44]} 38. f4 {[%clk
00:01:22]} {[%emt 00:00:25]} Nd3 {[%clk 00:01:02]} {[%emt 00:01:49]} 39. Rd2
{[%clk 00:00:43]} {[%emt 00:01:09]} Rg4 {[%clk 00:01:08]} {[%emt 00:00:23]} 40.
Qh3 {[%clk 00:00:38]} {[%emt 00:00:36]} Nxe1 {[%clk 00:00:36]} {[%emt
00:01:02]} 41. Rxe1 {[%clk 00:29:39]} {[%emt 00:01:29]} Rgxf4 {[%clk 00:29:33]}
{[%emt 00:01:32]} 42. Rd4 {[%clk 00:25:08]} {[%emt 00:05:01]} Qe5 {[%clk
00:29:24]} {[%emt 00:00:39]} 0-1

[Event "Schack-SM 2024: Sverigemastarklassen"]
[Site "Fortnox Arena, Hejaregatan 5, Vaxjo, Sweden"]
[Date "2024.06.29"]
[Round "1.2"]
[White "Lokander, Martin"]
[Black "Pantzar, Milton"]
[Result "1/2-1/2"]
[TimeControl "90 minutes for 40 moves + 30 minutes for the rest of the game + 30 seconds per move from move one."]
[WhiteTitle "IM"]
[BlackTitle "IM"]
[WhiteElo "2474"]
[BlackElo "2480"]

1. d4 {[%clk 01:30:37]} {[%emt 00:00:21]} d5 {[%clk 01:30:48]} {[%emt
00:00:14]} 2. c4 {[%clk 01:30:32]} {[%emt 00:00:34]} dxc4 {[%clk 01:30:51]}
{[%emt 00:00:27]} 3. Nf3 {[%clk 01:28:51]} {[%emt 00:02:11]} Nf6 {[%clk
01:30:19]} {[%emt 00:01:03]} 4. e3 {[%clk 01:29:10]} {[%emt 00:00:10]} e6
{[%clk 01:29:44]} {[%emt 00:01:04]} 5. Bxc4 {[%clk 01:29:32]} {[%emt 00:00:09]}
a6 {[%clk 01:30:03]} {[%emt 00:00:12]} 6. O-O {[%clk 01:29:06]} {[%emt
00:00:55]} c5 {[%clk 01:30:12]} {[%emt 00:00:21]} 7. b3 {[%clk 01:23:01]}
{[%emt 00:06:36]} Nbd7 {[%clk 01:26:30]} {[%emt 00:04:12]} 8. Bb2 {[%clk
01:20:53]} {[%emt 00:02:39]} b5 {[%clk 01:14:34]} {[%emt 00:12:24]} 9. Be2
{[%clk 01:20:29]} {[%emt 00:00:54]} Bb7 {[%clk 01:14:47]} {[%emt 00:00:17]} 10.
a4 {[%clk 01:19:15]} {[%emt 00:01:45]} bxa4 {[%clk 01:11:40]} {[%emt 00:03:36]}
11. bxa4 {[%clk 01:11:01]} {[%emt 00:08:44]} Be7 {[%clk 01:06:04]} {[%emt
00:06:06]} 12. Nbd2 {[%clk 01:07:49]} {[%emt 00:03:40]} O-O {[%clk 01:05:06]}
{[%emt 00:01:27]} 13. a5 {[%clk 01:06:56]} {[%emt 00:01:23]} Rb8 {[%clk
00:59:42]} {[%emt 00:05:55]} 14. Nc4 {[%clk 01:05:29]} {[%emt 00:01:58]} Bd5
{[%clk 00:56:13]} {[%emt 00:03:57]} 15. Nfd2 {[%clk 00:58:28]} {[%emt
00:07:31]} Qc7 {[%clk 00:45:32]} {[%emt 00:11:12]} 16. Ba3 {[%clk 00:49:05]}
{[%emt 00:09:53]} Rfc8 {[%clk 00:35:15]} {[%emt 00:10:47]} 17. Rc1 {[%clk
00:37:39]} {[%emt 00:11:55]} Qd8 {[%clk 00:23:03]} {[%emt 00:12:43]} 18. Nb3
{[%clk 00:35:07]} {[%emt 00:03:02]} cxd4 {[%clk 00:20:52]} {[%emt 00:02:41]} 19.
Bxe7 {[%clk 00:35:05]} {[%emt 00:00:32]} Qxe7 {[%clk 00:21:17]} {[%emt
00:00:04]} 20. Nxd4 {[%clk 00:34:43]} {[%emt 00:00:53]} Qb4 {[%clk 00:17:48]}
{[%emt 00:03:59]} 21. Nc2 {[%clk 00:29:31]} {[%emt 00:05:42]} Qc5 {[%clk
00:11:46]} {[%emt 00:06:33]} 22. Nd4 {[%clk 00:28:39]} {[%emt 00:01:20]} Qb4
{[%clk 00:11:18]} {[%emt 00:01:00]} 23. Nc2 {[%clk 00:29:01]} {[%emt 00:00:07]}
Qc5 {[%clk 00:08:13]} {[%emt 00:03:34]} 24. Nd4 {[%clk 00:29:25]} {[%emt
00:00:06]} Qb4 {[%clk 00:08:34]} {[%emt 00:00:10]} 1/2-1/2

[Event "Schack-SM 2024: Sverigemastarklassen"]
[Site "Fortnox Arena, Hejaregatan 5, Vaxjo, Sweden"]
[Date "2024.06.29"]
[Round "1.3"]
[White "Ostlund, Joar"]
[Black "Blomqvist, Erik"]
[Result "0-1"]
[TimeControl "90 minutes for 40 moves + 30 minutes for the rest of the game + 30 seconds per move from move one."]
[WhiteTitle "FM"]
[BlackTitle "GM"]
[WhiteElo "2334"]
[BlackElo "2527"]

1. d4 {[%clk 01:30:57]} {[%emt 00:00:03]} Nf6 {[%clk 01:30:54]} {[%emt
00:00:06]} 2. c4 {[%clk 01:31:21]} {[%emt 00:00:06]} e6 {[%clk 01:31:18]}
{[%emt 00:00:06]} 3. Nf3 {[%clk 01:31:44]} {[%emt 00:00:07]} d5 {[%clk
01:31:37]} {[%emt 00:00:10]} 4. Nc3 {[%clk 01:32:00]} {[%emt 00:00:15]} Bb4
{[%clk 01:31:51]} {[%emt 00:00:16]} 5. Bg5 {[%clk 01:31:50]} {[%emt 00:00:39]}
h6 {[%clk 01:31:46]} {[%emt 00:00:36]} 6. Bxf6 {[%clk 01:32:10]} {[%emt
00:00:11]} Qxf6 {[%clk 01:32:07]} {[%emt 00:00:09]} 7. e3 {[%clk 01:31:02]}
{[%emt 00:01:37]} O-O {[%clk 01:31:02]} {[%emt 00:01:35]} 8. Rc1 {[%clk
01:30:46]} {[%emt 00:00:46]} c6 {[%clk 01:30:42]} {[%emt 00:00:51]} 9. a3
{[%clk 01:26:39]} {[%emt 00:04:37]} Ba5 {[%clk 01:23:53]} {[%emt 00:07:19]} 10.
Bd3 {[%clk 01:23:32]} {[%emt 00:03:37]} Nd7 {[%clk 01:22:29]} {[%emt 00:01:55]}
11. cxd5 {[%clk 01:23:02]} {[%emt 00:01:00]} exd5 {[%clk 01:22:36]} {[%emt
00:00:23]} 12. O-O {[%clk 01:21:09]} {[%emt 00:02:23]} Rd8 {[%clk 01:17:15]}
{[%emt 00:05:52]} 13. b4 {[%clk 01:17:34]} {[%emt 00:04:04]} Bb6 {[%clk
01:17:25]} {[%emt 00:00:19]} 14. b5 {[%clk 01:15:17]} {[%emt 00:02:47]} Nf8
{[%clk 01:11:37]} {[%emt 00:06:18]} 15. bxc6 {[%clk 01:08:11]} {[%emt
00:07:36]} bxc6 {[%clk 01:11:29]} {[%emt 00:00:38]} 16. Qc2 {[%clk 01:04:52]}
{[%emt 00:03:49]} Bd7 {[%clk 00:51:35]} {[%emt 00:20:25]} 17. Ne5 {[%clk
01:01:49]} {[%emt 00:03:33]} Be8 {[%clk 00:49:17]} {[%emt 00:02:48]} 18. Na4
{[%clk 00:57:39]} {[%emt 00:04:40]} Bc7 {[%clk 00:45:52]} {[%emt 00:03:55]} 19.
f4 {[%clk 00:56:09]} {[%emt 00:02:00]} Qe7 {[%clk 00:41:24]} {[%emt 00:04:58]}
20. Qc3 {[%clk 00:30:14]} {[%emt 00:26:26]} Bd6 {[%clk 00:32:19]} {[%emt
00:09:35]} 21. Nc5 {[%clk 00:28:51]} {[%emt 00:01:53]} f6 {[%clk 00:28:41]}
{[%emt 00:04:06]} 22. Ng4 {[%clk 00:29:19]} {[%emt 00:00:03]} Rab8 {[%clk
00:28:37]} {[%emt 00:00:34]} 23. Rfe1 {[%clk 00:22:35]} {[%emt 00:07:15]} Ne6
{[%clk 00:15:05]} {[%emt 00:14:02]} 24. g3 {[%clk 00:20:35]} {[%emt 00:02:30]}
Nxc5 {[%clk 00:12:57]} {[%emt 00:02:38]} 25. dxc5 {[%clk 00:21:00]} {[%emt
00:00:05]} Bc7 {[%clk 00:13:24]} {[%emt 00:00:03]} 26. Bc2 {[%clk 00:19:04]}
{[%emt 00:02:27]} Bd7 {[%clk 00:11:06]} {[%emt 00:02:48]} 27. Nf2 {[%clk
00:17:59]} {[%emt 00:01:35]} Rb5 {[%clk 00:11:13]} {[%emt 00:00:22]} 28. Qd4
{[%clk 00:05:33]} {[%emt 00:12:56]} f5 {[%clk 00:05:05]} {[%emt 00:06:38]} 29.
Nd3 {[%clk 00:02:27]} {[%emt 00:03:37]} Re8 {[%clk 00:05:29]} {[%emt 00:00:06]}
30. Ba4 {[%clk 00:01:28]} {[%emt 00:01:28]} Ra5 {[%clk 00:05:50]} {[%emt
00:00:08]} 31. Rb1 {[%clk 00:00:51]} {[%emt 00:01:08]} Qd8 {[%clk 00:04:54]}
{[%emt 00:01:26]} 32. Rb4 {[%clk 00:00:31]} {[%emt 00:00:50]} Re4 {[%clk
00:05:10]} {[%emt 00:00:14]} 33. Qc3 {[%clk 00:00:31]} {[%emt 00:00:29]} Rxa4
{[%clk 00:05:31]} {[%emt 00:00:09]} 34. Reb1 {[%clk 00:00:31]} {[%emt
00:00:30]} Raxb4 {[%clk 00:05:15]} {[%emt 00:00:48]} 35. Nxb4 {[%clk 00:00:38]}
{[%emt 00:00:23]} Qe7 {[%clk 00:04:04]} {[%emt 00:01:41]} 0-1

[Event "Schack-SM 2024: Sverigemastarklassen"]
[Site "Fortnox Arena, Hejaregatan 5, Vaxjo, Sweden"]
[Date "2024.06.29"]
[Round "1.4"]
[White "Galperin, Platon"]
[Black "Seo, Jung Min"]
[Result "1-0"]
[TimeControl "90 minutes for 40 moves + 30 minutes for the rest of the game + 30 seconds per move from move one."]
[WhiteTitle "GM"]
[BlackTitle "IM"]
[WhiteElo "2551"]
[BlackElo "2442"]

1. d4 {[%clk 01:30:58]} {[%emt 00:00:01]} Nf6 {[%clk 01:30:58]} {[%emt
00:00:02]} 2. c4 {[%clk 01:31:22]} {[%emt 00:00:06]} e6 {[%clk 01:31:27]}
{[%emt 00:00:02]} 3. Bf4 {[%clk 01:31:47]} {[%emt 00:00:05]} d5 {[%clk
01:21:02]} {[%emt 00:10:54]} 4. cxd5 {[%clk 01:31:50]} {[%emt 00:00:27]} exd5
{[%clk 01:20:56]} {[%emt 00:00:38]} 5. e3 {[%clk 01:32:11]} {[%emt 00:00:07]}
Bd6 {[%clk 01:20:04]} {[%emt 00:01:23]} 6. Bxd6 {[%clk 01:32:32]} {[%emt
00:00:08]} Qxd6 {[%clk 01:20:33]} {[%emt 00:00:02]} 7. Nc3 {[%clk 01:32:52]}
{[%emt 00:00:10]} O-O {[%clk 01:20:34]} {[%emt 00:00:29]} 8. Bd3 {[%clk
01:33:19]} {[%emt 00:00:03]} Nc6 {[%clk 01:08:37]} {[%emt 00:12:27]} 9. Rc1
{[%clk 01:30:12]} {[%emt 00:03:38]} Ne7 {[%clk 01:02:32]} {[%emt 00:06:34]} 10.
Qc2 {[%clk 01:14:26]} {[%emt 00:16:15]} c6 {[%clk 00:54:31]} {[%emt 00:08:32]}
11. Nge2 {[%clk 01:14:42]} {[%emt 00:00:15]} g6 {[%clk 00:53:53]} {[%emt
00:01:08]} 12. f3 {[%clk 01:00:06]} {[%emt 00:15:05]} Nf5 {[%clk 00:50:36]}
{[%emt 00:03:48]} 13. Qd2 {[%clk 00:57:33]} {[%emt 00:03:03]} Re8 {[%clk
00:47:59]} {[%emt 00:03:07]} 14. Bxf5 {[%clk 00:57:58]} {[%emt 00:00:07]} Bxf5
{[%clk 00:48:26]} {[%emt 00:00:03]} 15. Ng3 {[%clk 00:56:52]} {[%emt 00:01:33]}
Qe6 {[%clk 00:34:49]} {[%emt 00:14:09]} 16. Nxf5 {[%clk 00:51:31]} {[%emt
00:05:51]} Qxf5 {[%clk 00:35:13]} {[%emt 00:00:07]} 17. O-O {[%clk 00:51:50]}
{[%emt 00:00:09]} Rad8 {[%clk 00:23:36]} {[%emt 00:12:08]} 18. Rce1 {[%clk
00:51:55]} {[%emt 00:00:24]} Qg5 {[%clk 00:23:42]} {[%emt 00:00:24]} 19. Qf2
{[%clk 00:52:12]} {[%emt 00:00:13]} Qf5 {[%clk 00:11:11]} {[%emt 00:13:02]} 20.
Re2 {[%clk 00:41:35]} {[%emt 00:11:06]} Rd6 {[%clk 00:04:05]} {[%emt 00:07:37]}
21. Qh4 {[%clk 00:16:21]} {[%emt 00:25:45]} Qd3 {[%clk 00:03:25]} {[%emt
00:01:08]} 22. Rd1 {[%clk 00:16:07]} {[%emt 00:00:44]} Qc4 {[%clk 00:02:53]}
{[%emt 00:01:01]} 23. Qf4 {[%clk 00:14:36]} {[%emt 00:02:02]} Rde6 {[%clk
00:02:27]} {[%emt 00:00:57]} 24. g4 {[%clk 00:11:46]} {[%emt 00:03:19]} b5
{[%clk 00:02:43]} {[%emt 00:00:15]} 25. Rf2 {[%clk 00:10:28]} {[%emt 00:01:47]}
Kg7 {[%clk 00:02:17]} {[%emt 00:00:56]} 26. Re1 {[%clk 00:03:27]} {[%emt
00:07:32]} b4 {[%clk 00:02:35]} {[%emt 00:00:12]} 27. Na4 {[%clk 00:03:46]}
{[%emt 00:00:11]} Rxe3 {[%clk 00:01:25]} {[%emt 00:01:41]} 28. Rxe3 {[%clk
00:04:11]} {[%emt 00:00:05]} Qc1+ {[%clk 00:01:52]} {[%emt 00:00:03]} 29. Rf1
{[%clk 00:04:37]} {[%emt 00:00:03]} Qxe3+ {[%clk 00:02:20]} {[%emt 00:00:03]}
30. Qxe3 {[%clk 00:05:02]} {[%emt 00:00:04]} Rxe3 {[%clk 00:02:49]} {[%emt
00:00:01]} 31. Kf2 {[%clk 00:05:26]} {[%emt 00:00:05]} Rd3 {[%clk 00:00:46]}
{[%emt 00:02:33]} 32. Ke2 {[%clk 00:05:04]} {[%emt 00:00:52]} Rxd4 {[%clk
00:01:14]} {[%emt 00:00:03]} 33. b3 {[%clk 00:05:33]} {[%emt 00:00:01]} Rf4
{[%clk 00:01:14]} {[%emt 00:00:29]} 34. Nc5 {[%clk 00:06:02]} {[%emt 00:00:03]}
Ng8 {[%clk 00:00:55]} {[%emt 00:00:48]} 35. Nd7 {[%clk 00:03:38]} {[%emt
00:02:55]} f5 {[%clk 00:00:41]} {[%emt 00:00:44]} 36. Nc5 {[%clk 00:04:02]}
{[%emt 00:00:05]} Kf6 {[%clk 00:00:34]} {[%emt 00:00:37]} 37. Nd3 {[%clk
00:03:22]} {[%emt 00:01:10]} Rd4 {[%clk 00:01:02]} {[%emt 00:00:02]} 38. Ke3
{[%clk 00:03:48]} {[%emt 00:00:04]} Rxd3+ {[%clk 00:01:25]} {[%emt 00:00:07]}
39. Kxd3 {[%clk 00:04:13]} {[%emt 00:00:05]} Ke5 {[%clk 00:00:32]} {[%emt
00:01:23]} 40. f4+ {[%clk 00:01:10]} {[%emt 00:03:33]} Ke6 {[%clk 00:00:48]}
{[%emt 00:00:15]} 41. Re1+ {[%clk 00:01:31]} {[%emt 00:00:09]} Kd6 {[%clk
00:01:13]} {[%emt 00:00:04]} 42. gxf5 {[%clk 00:00:44]} {[%emt 00:01:17]} gxf5
{[%clk 00:01:42]} {[%emt 00:00:02]} 43. Re8 {[%clk 00:00:52]} {[%emt 00:00:21]}
Ne7 {[%clk 00:01:35]} {[%emt 00:00:37]} 44. Ra8 {[%clk 00:00:33]} {[%emt
00:00:50]} c5 {[%clk 00:29:32]} {[%emt 00:02:34]} 45. Rxa7 {[%clk 00:26:03]}
{[%emt 00:04:59]} h5 {[%clk 00:29:16]} {[%emt 00:00:45]} 46. Ra6+ {[%clk
00:25:59]} {[%emt 00:00:35]} Nc6 {[%clk 00:29:42]} {[%emt 00:00:04]} 47. Ra8
{[%clk 00:26:24]} {[%emt 00:00:04]} Nd4 {[%clk 00:29:49]} {[%emt 00:00:24]} 48.
Rd8+ {[%clk 00:21:20]} {[%emt 00:05:34]} Kc6 {[%clk 00:28:37]} {[%emt
00:01:42]} 49. Rh8 {[%clk 00:13:25]} {[%emt 00:08:24]} Ne6 {[%clk 00:29:03]}
{[%emt 00:00:03]} 50. Rh6 {[%clk 00:12:38]} {[%emt 00:01:17]} Kd7 {[%clk
00:29:18]} {[%emt 00:00:15]} 51. Rf6 {[%clk 00:07:31]} {[%emt 00:05:37]} Nxf4+
{[%clk 00:27:32]} {[%emt 00:02:18]} 52. Kd2 {[%clk 00:07:48]} {[%emt 00:00:13]}
Ne6 {[%clk 00:24:00]} {[%emt 00:04:01]} 53. Rxf5 {[%clk 00:08:12]} {[%emt
00:00:06]} Kd6 {[%clk 00:24:28]} {[%emt 00:00:01]} 54. Rxh5 {[%clk 00:08:30]}
{[%emt 00:00:13]} c4 {[%clk 00:24:56]} {[%emt 00:00:02]} 55. bxc4 {[%clk
00:06:55]} {[%emt 00:02:06]} dxc4 {[%clk 00:25:25]} {[%emt 00:00:01]} 56. Rb5
{[%clk 00:07:16]} {[%emt 00:00:08]} b3 {[%clk 00:25:38]} {[%emt 00:00:18]} 57.
axb3 {[%clk 00:06:43]} {[%emt 00:01:03]} cxb3 {[%clk 00:26:04]} {[%emt
00:00:04]} 58. Rxb3 {[%clk 00:07:00]} {[%emt 00:00:12]} Ke5 {[%clk 00:26:32]}
{[%emt 00:00:02]} 59. Rf3 {[%clk 00:06:54]} {[%emt 00:00:35]} Ke4 {[%clk
00:26:39]} {[%emt 00:00:25]} 60. Rf1 {[%clk 00:05:00]} {[%emt 00:02:22]} Nd4
{[%clk 00:27:06]} {[%emt 00:00:04]} 61. h4 {[%clk 00:04:19]} {[%emt 00:01:11]}
1-0